Workbook

Sheet Sheet1
A8: Please sign and Return
A9: Second Mortgage Forgiveness by Year
A11: Kansas Housing Resources Corporation (KHRC) is assisting in the financing of the purchase of your property
A12: with a second mortgage loan. Should you sell your home prior to the end of the affordability period, you
A13: will owe a portion of the funds back to KHRC. Below is an approximation of how much you may owe at
A14: the beginning of each year of your ten year affordability period:
A17: The amount you are receiving is: | D17: 26700
B19: 1/2 Soft Second Amount | D19: 1/2 Interest Free Mortgage Amount | F19: TOTAL OWED TO KHRC
B20: =D17/2 -> 13350 | D20: =D17/2 -> 13350
A22: Year 1 | B22: =(B20/10)*10 -> 13350 | D22: =D20 -> 13350 | F22: =B22+D22 -> 26700
A23: Year 2 | B23: =(B20/10)*9 -> 12015 | D23: =D20 -> 13350 | F23: =B23+D23 -> 25365
A24: Year 3 | B24: =(B20/10)*8 -> 10680 | D24: =D20 -> 13350 | F24: 24030
A25: Year 4 | B25: =(B20/10*7) -> 9345 | D25: =D20 -> 13350 | F25: 22695
A26: Year 5 | B26: =(B20/10)*6 -> 8010 | D26: =D20 -> 13350 | F26: 21360
A27: Year 6 | B27: =(B20/10)*5 -> 6675 | D27: =D20 -> 13350 | F27: 20025
A28: Year 7 | B28: =(B20/10)*4 -> 5340 | D28: =D20 -> 13350 | F28: 18690
A29: Year 8 | B29: =(B20/10)*3 -> 4005 | D29: =D20 -> 13350 | F29: 17355
A30: Year 9 | B30: =(B20/10)*2 -> 2670 | D30: =D20 -> 13350 | F30: 16020
A31: Year 10 | B31: =(B20/10)*1 -> 1335 | D31: =D20 -> 13350 | F31: 14685
A32: Year 11 | B32: 0 | D32: 0 | F32: 0
A35: By signing, you are confirming that you have received this information.
A37: Use blue ink or e-signature
A41: ___________________________________________________________
A42: Homebuyer | E42: Date
A46: ___________________________________________________________
A47: Homebuyer | E47: Date
